[Event "Late-Titled-Tuesday-Blitz-March-19-2024"]
[Site "Chess.com"]
[Date "2024.03.19"]
[Round "5"]
[White "woodhy"]
[Black "BilicVladimir"]
[Result "1-0"]
[WhiteElo "2525"]
[BlackElo "2670"]
[TimeControl "180+1"]
[EndTime "14:55:29 PDT"]
[Termination "woodhy won by checkmate"]

1. e4 {[%clk 0:02:58.2]} 1... e6 {[%clk 0:03:00.3]} 2. d4 {[%clk 0:02:56.7]}
2... d5 {[%clk 0:03:00.8]} 3. e5 {[%clk 0:02:55.4]} 3... c5 {[%clk 0:03:00.6]}
4. c3 {[%clk 0:02:56]} 4... Nc6 {[%clk 0:03:00.9]} 5. Be3 {[%clk 0:02:55.7]}
5... Qb6 {[%clk 0:03:00.8]} 6. Qd2 {[%clk 0:02:55.5]} 6... cxd4 {[%clk
0:02:58.9]} 7. cxd4 {[%clk 0:02:56.4]} 7... Nge7 {[%clk 0:02:58.5]} 8. Nf3
{[%clk 0:02:56]} 8... Nf5 {[%clk 0:02:57.4]} 9. Nc3 {[%clk 0:02:54.6]} 9... Be7
{[%clk 0:02:55.9]} 10. Bd3 {[%clk 0:02:52.8]} 10... Nxe3 {[%clk 0:02:55.6]} 11.
fxe3 {[%clk 0:02:52.6]} 11... O-O {[%clk 0:02:54.9]} 12. O-O {[%clk 0:02:52.7]}
12... Bd7 {[%clk 0:02:55.1]} 13. Rac1 {[%clk 0:02:46.7]} 13... Rac8 {[%clk
0:02:53.1]} 14. Kh1 {[%clk 0:02:46.7]} 14... Na5 {[%clk 0:02:45.2]} 15. e4
{[%clk 0:02:38.7]} 15... dxe4 {[%clk 0:02:37.7]} 16. Bxe4 {[%clk 0:02:23.2]}
16... Nc4 {[%clk 0:02:22.3]} 17. Qd3 {[%clk 0:02:16.6]} 17... g6 {[%clk
0:02:17.7]} 18. b3 {[%clk 0:02:12.3]} 18... Na3 {[%clk 0:02:04]} 19. d5 {[%clk
0:02:06.6]} 19... exd5 {[%clk 0:01:50.6]} 20. Nxd5 {[%clk 0:02:07.5]} 20... Qd8
{[%clk 0:01:44.7]} 21. Nc3 {[%clk 0:02:08.4]} 21... Bc6 {[%clk 0:01:27]} 22. Nd5
{[%clk 0:02:09.3]} 22... Bxd5 {[%clk 0:01:08.9]} 23. Bxd5 {[%clk 0:02:01.5]}
23... Rxc1 {[%clk 0:01:06.1]} 24. Rxc1 {[%clk 0:02:02.4]} 24... Qb6 {[%clk
0:00:57.3]} 25. Qe4 {[%clk 0:01:26.6]} 25... Nb5 {[%clk 0:00:55.4]} 26. Bxb7
{[%clk 0:01:22]} 26... Nc7 {[%clk 0:00:53]} 27. h4 {[%clk 0:01:08.4]} 27... Ne6
{[%clk 0:00:49.6]} 28. Bd5 {[%clk 0:01:05.1]} 28... Ng7 {[%clk 0:00:40.5]} 29.
Qf4 {[%clk 0:00:51.9]} 29... Qf2 {[%clk 0:00:34.4]} 30. Rc7 {[%clk 0:00:41.9]}
30... Nh5 {[%clk 0:00:29.9]} 31. Qg4 {[%clk 0:00:18.7]} 31... Bd8 {[%clk
0:00:22.9]} 32. Rd7 {[%clk 0:00:15.2]} 32... Bb6 {[%clk 0:00:22.7]} 33. e6
{[%clk 0:00:12.5]} 33... Qf1+ {[%clk 0:00:16.2]} 34. Kh2 {[%clk 0:00:12.2]}
34... Kh8 {[%clk 0:00:11.7]} 35. Rxf7 {[%clk 0:00:08.9]} 35... Rxf7 {[%clk
0:00:11.4]} 36. exf7 {[%clk 0:00:06.1]} 36... Bc7+ {[%clk 0:00:11.3]} 37. g3
{[%clk 0:00:05.2]} 37... Qf2+ {[%clk 0:00:08.1]} 38. Kh1 {[%clk 0:00:05.5]}
38... Nxg3+ {[%clk 0:00:03.8]} 39. Qxg3 {[%clk 0:00:05.6]} 39... Qxg3 {[%clk
0:00:03.2]} 40. f8=Q# {[%clk 0:00:05.6]} 1-0

[Event "Late-Titled-Tuesday-Blitz-March-19-2024"]
[Site "Chess.com"]
[Date "2024.03.19"]
[Round "5"]
[White "dawid498"]
[Black "Fandorine"]
[Result "0-1"]
[WhiteElo "2698"]
[BlackElo "2932"]
[TimeControl "180+1"]
[EndTime "14:55:34 PDT"]
[Termination "Fandorine won by resignation"]

1. e4 {[%clk 0:03:00.9]} 1... c5 {[%clk 0:02:56.3]} 2. Nf3 {[%clk 0:03:01.3]}
2... e6 {[%clk 0:02:56.4]} 3. d4 {[%clk 0:03:01.6]} 3... cxd4 {[%clk 0:02:57.3]}
4. Nxd4 {[%clk 0:03:02.4]} 4... Nc6 {[%clk 0:02:57.7]} 5. Nc3 {[%clk 0:03:02.6]}
5... Nf6 {[%clk 0:02:56.5]} 6. Ndb5 {[%clk 0:03:00]} 6... d6 {[%clk 0:02:55.1]}
7. Bf4 {[%clk 0:02:58.6]} 7... e5 {[%clk 0:02:55.7]} 8. Bg5 {[%clk 0:02:59.3]}
8... a6 {[%clk 0:02:56.2]} 9. Na3 {[%clk 0:02:58.1]} 9... b5 {[%clk 0:02:56.8]}
10. Nd5 {[%clk 0:02:58.8]} 10... Be7 {[%clk 0:02:57.1]} 11. Bxf6 {[%clk
0:02:59.6]} 11... Bxf6 {[%clk 0:02:57.6]} 12. c3 {[%clk 0:03:00.5]} 12... Ne7
{[%clk 0:02:55.8]} 13. Nxf6+ {[%clk 0:02:51.6]} 13... gxf6 {[%clk 0:02:56.7]}
14. g3 {[%clk 0:02:52.3]} 14... Bb7 {[%clk 0:02:55.5]} 15. Bg2 {[%clk
0:02:52.5]} 15... f5 {[%clk 0:02:29.4]} 16. Qe2 {[%clk 0:02:36.7]} 16... Qc7
{[%clk 0:02:19.7]} 17. O-O {[%clk 0:02:25.9]} 17... Bxe4 {[%clk 0:02:19.1]} 18.
Bxe4 {[%clk 0:02:26]} 18... fxe4 {[%clk 0:02:20]} 19. Qxe4 {[%clk 0:02:26.8]}
19... Qc6 {[%clk 0:02:20.5]} 20. Qh4 {[%clk 0:01:56.2]} 20... h5 {[%clk
0:01:55.1]} 21. Rad1 {[%clk 0:01:42.1]} 21... d5 {[%clk 0:01:42]} 22. Nc2 {[%clk
0:01:32.7]} 22... Qe6 {[%clk 0:01:27.3]} 23. Ne3 {[%clk 0:01:15.3]} 23... f6
{[%clk 0:01:25]} 24. Rfe1 {[%clk 0:00:26.4]} 24... Rd8 {[%clk 0:01:02.9]} 25. f4
{[%clk 0:00:26.2]} 25... Ng6 {[%clk 0:00:54.6]} 26. f5 {[%clk 0:00:26.6]} 26...
Nxh4 {[%clk 0:00:54.8]} 27. fxe6 {[%clk 0:00:27.2]} 27... Nf3+ {[%clk
0:00:55.5]} 28. Kf2 {[%clk 0:00:27.7]} 28... Nxe1 {[%clk 0:00:56]} 29. Nf5
{[%clk 0:00:06.5]} 29... Nc2 {[%clk 0:00:37.2]} 30. Rc1 {[%clk 0:00:05.2]} 30...
Rc8 {[%clk 0:00:30]} 31. Rxc2 {[%clk 0:00:05.2]} 31... Rc6 {[%clk 0:00:29.7]}
32. e7 {[%clk 0:00:02.5]} 32... Rc7 {[%clk 0:00:20.1]} 33. Rd2 {[%clk 0:00:03]}
33... Rd7 {[%clk 0:00:20.7]} 34. Kf3 {[%clk 0:00:02.2]} 34... Kf7 {[%clk
0:00:21.3]} 35. h3 {[%clk 0:00:02.4]} 35... Re8 {[%clk 0:00:11.3]} 36. a3 {[%clk
0:00:02.8]} 36... Rexe7 {[%clk 0:00:11]} 37. Nxe7 {[%clk 0:00:03.7]} 37... Kxe7
{[%clk 0:00:11.7]} 38. g4 {[%clk 0:00:04.3]} 38... hxg4+ {[%clk 0:00:12.1]} 39.
Kxg4 {[%clk 0:00:05]} 39... Ke6 {[%clk 0:00:12.8]} 40. h4 {[%clk 0:00:03.6]}
40... Rg7+ {[%clk 0:00:13.1]} 41. Kh3 {[%clk 0:00:04.2]} 41... e4 {[%clk
0:00:13.8]} 42. h5 {[%clk 0:00:04.1]} 42... f5 {[%clk 0:00:14.4]} 43. Kh4 {[%clk
0:00:03.7]} 43... Rg4+ {[%clk 0:00:13.1]} 44. Kh3 {[%clk 0:00:04.4]} 44... Ke5
{[%clk 0:00:13.5]} 45. Rd1 {[%clk 0:00:03.6]} 45... e3 {[%clk 0:00:13.2]} 46. h6
{[%clk 0:00:03.3]} 46... Rg6 {[%clk 0:00:13.1]} 0-1

[Event "Late-Titled-Tuesday-Blitz-March-19-2024"]
[Site "Chess.com"]
[Date "2024.03.19"]
[Round "5"]
[White "Janh4"]
[Black "Felix-Rose"]
[Result "1/2-1/2"]
[WhiteElo "2153"]
[BlackElo "2266"]
[TimeControl "180+1"]
[EndTime "14:55:34 PDT"]
[Termination "Game drawn by repetition"]

1. d4 {[%clk 0:03:00.9]} 1... d5 {[%clk 0:02:53.2]} 2. Nc3 {[%clk 0:03:01.1]}
2... Nf6 {[%clk 0:02:53.2]} 3. Bf4 {[%clk 0:03:01.3]} 3... c5 {[%clk 0:02:53.6]}
4. e3 {[%clk 0:03:01.4]} 4... cxd4 {[%clk 0:02:53.7]} 5. exd4 {[%clk 0:03:01.6]}
5... a6 {[%clk 0:02:54.3]} 6. Nf3 {[%clk 0:02:58.6]} 6... Nc6 {[%clk 0:02:52.8]}
7. h3 {[%clk 0:02:54.9]} 7... Bf5 {[%clk 0:02:51.6]} 8. Bd3 {[%clk 0:02:54.3]}
8... Bxd3 {[%clk 0:02:49.3]} 9. Qxd3 {[%clk 0:02:54.9]} 9... e6 {[%clk
0:02:49.3]} 10. O-O {[%clk 0:02:54.6]} 10... Bd6 {[%clk 0:02:44.8]} 11. Bg5
{[%clk 0:02:54.7]} 11... Be7 {[%clk 0:02:43.7]} 12. Rfe1 {[%clk 0:02:52.6]}
12... O-O {[%clk 0:02:42.8]} 13. a3 {[%clk 0:02:46.1]} 13... b5 {[%clk
0:02:42.1]} 14. Nd1 {[%clk 0:02:35.7]} 14... Ne4 {[%clk 0:02:38.6]} 15. Bxe7
{[%clk 0:02:35.8]} 15... Qxe7 {[%clk 0:02:39.5]} 16. Nd2 {[%clk 0:02:27.4]}
16... Nxd2 {[%clk 0:02:34.5]} 17. Qxd2 {[%clk 0:02:26.7]} 17... a5 {[%clk
0:02:31.9]} 18. Nc3 {[%clk 0:02:11.4]} 18... b4 {[%clk 0:02:29.2]} 19. axb4
{[%clk 0:02:11.3]} 19... axb4 {[%clk 0:02:30.1]} 20. Rxa8 {[%clk 0:02:10.6]}
20... Rxa8 {[%clk 0:02:28.5]} 21. Nxd5 {[%clk 0:02:00]} 21... Qd6 {[%clk
0:02:08.5]} 22. Ne3 {[%clk 0:01:53.7]} 22... Qxd4 {[%clk 0:02:03.3]} 23. Qxd4
{[%clk 0:01:49.5]} 23... Nxd4 {[%clk 0:02:04.2]} 24. Rd1 {[%clk 0:01:49.9]}
24... e5 {[%clk 0:02:00.7]} 25. Kf1 {[%clk 0:01:41.5]} 25... Rc8 {[%clk
0:01:55.8]} 26. Rd2 {[%clk 0:01:02.3]} 26... f6 {[%clk 0:01:55.5]} 27. Ke1
{[%clk 0:00:55.3]} 27... Kf7 {[%clk 0:01:47.8]} 28. Kd1 {[%clk 0:00:51.9]} 28...
Ra8 {[%clk 0:01:47.3]} 29. Ke1 {[%clk 0:00:46.5]} 29... Ra1+ {[%clk 0:01:43.7]}
30. Rd1 {[%clk 0:00:43.5]} 30... Ra2 {[%clk 0:01:44.2]} 31. Rb1 {[%clk
0:00:31.8]} 31... Ke6 {[%clk 0:01:38.3]} 32. Kd2 {[%clk 0:00:28.4]} 32... h5
{[%clk 0:01:33.9]} 33. c3 {[%clk 0:00:14.2]} 33... bxc3+ {[%clk 0:01:19.6]} 34.
Kxc3 {[%clk 0:00:14.3]} 34... f5 {[%clk 0:01:17.9]} 35. Nc4 {[%clk 0:00:12.8]}
35... Kd5 {[%clk 0:01:14.3]} 36. Nb6+ {[%clk 0:00:11.3]} 36... Kc6 {[%clk
0:01:11]} 37. Nc4 {[%clk 0:00:11.1]} 37... Kd5 {[%clk 0:01:04.3]} 38. Nb6+
{[%clk 0:00:11.4]} 38... Ke6 {[%clk 0:01:02.7]} 39. Nc4 {[%clk 0:00:09.9]} 39...
h4 {[%clk 0:01:01.6]} 40. Re1 {[%clk 0:00:08.2]} 40... Nc6 {[%clk 0:00:45.1]}
41. Kb3 {[%clk 0:00:07.6]} 41... Ra8 {[%clk 0:00:44.6]} 42. Nxe5 {[%clk
0:00:06.5]} 42... Rb8+ {[%clk 0:00:41.2]} 43. Kc3 {[%clk 0:00:05.4]} 43... Nxe5
{[%clk 0:00:39.5]} 44. f4 {[%clk 0:00:05.3]} 44... Rc8+ {[%clk 0:00:34.9]} 45.
Kd2 {[%clk 0:00:03]} 45... Rd8+ {[%clk 0:00:33.6]} 46. Kc2 {[%clk 0:00:01.5]}
46... Rc8+ {[%clk 0:00:33.3]} 47. Kd2 {[%clk 0:00:01.5]} 47... Rd8+ {[%clk
0:00:32.7]} 48. Kc2 {[%clk 0:00:01.9]} 48... Rc8+ {[%clk 0:00:33]} 49. Kd2
{[%clk 0:00:02.3]} 1/2-1/2

[Event "Late-Titled-Tuesday-Blitz-March-19-2024"]
[Site "Chess.com"]
[Date "2024.03.19"]
[Round "5"]
[White "Alex_Sahakyan2006"]
[Black "ChristopherYoo"]
[Result "0-1"]
[WhiteElo "2816"]
[BlackElo "2957"]
[TimeControl "180+1"]
[EndTime "14:55:35 PDT"]
[Termination "ChristopherYoo won by resignation"]

1. e4 {[%clk 0:03:00.9]} 1... c5 {[%clk 0:02:58.8]} 2. Nf3 {[%clk 0:03:00.9]}
2... d6 {[%clk 0:02:58.2]} 3. Nc3 {[%clk 0:03:01]} 3... Nf6 {[%clk 0:02:56.8]}
4. e5 {[%clk 0:03:01.4]} 4... dxe5 {[%clk 0:02:57]} 5. Nxe5 {[%clk 0:03:02.3]}
5... Qc7 {[%clk 0:02:40.5]} 6. Nc4 {[%clk 0:02:59.5]} 6... Nc6 {[%clk
0:02:17.5]} 7. g3 {[%clk 0:02:57.7]} 7... Nd4 {[%clk 0:02:11.7]} 8. Bg2 {[%clk
0:02:50]} 8... Bg4 {[%clk 0:02:10]} 9. f3 {[%clk 0:02:48.6]} 9... Be6 {[%clk
0:02:10.6]} 10. d3 {[%clk 0:02:18.4]} 10... g6 {[%clk 0:02:02.9]} 11. Bf4 {[%clk
0:02:13.8]} 11... Qc8 {[%clk 0:02:02.6]} 12. Be5 {[%clk 0:02:09.7]} 12... Bg7
{[%clk 0:02:01]} 13. f4 {[%clk 0:02:07.4]} 13... Bh3 {[%clk 0:01:32.8]} 14. Qd2
{[%clk 0:01:56.5]} 14... O-O {[%clk 0:01:21.5]} 15. O-O {[%clk 0:01:54.3]} 15...
b5 {[%clk 0:01:02.6]} 16. Ne3 {[%clk 0:01:45.3]} 16... Bxg2 {[%clk 0:00:49.6]}
17. Qxg2 {[%clk 0:01:44.8]} 17... Qd7 {[%clk 0:00:50.1]} 18. Rae1 {[%clk
0:01:41.1]} 18... Rfd8 {[%clk 0:00:41.7]} 19. Bxf6 {[%clk 0:01:31.6]} 19... Bxf6
{[%clk 0:00:39.8]} 20. Ned5 {[%clk 0:01:31.9]} 20... Kg7 {[%clk 0:00:27.2]} 21.
Nxf6 {[%clk 0:01:29.6]} 21... exf6 {[%clk 0:00:26.4]} 22. Ne4 {[%clk 0:01:21.2]}
22... Rac8 {[%clk 0:00:17.9]} 23. Kh1 {[%clk 0:01:04.1]} 23... a5 {[%clk
0:00:16.8]} 24. c4 {[%clk 0:00:59.4]} 24... b4 {[%clk 0:00:16.5]} 25. g4 {[%clk
0:00:50.4]} 25... f5 {[%clk 0:00:15.1]} 26. Nf2 {[%clk 0:00:32.7]} 26... Qc6
{[%clk 0:00:13.4]} 27. g5 {[%clk 0:00:23.2]} 27... Ne6 {[%clk 0:00:07.4]} 28.
Qxc6 {[%clk 0:00:16.9]} 28... Rxc6 {[%clk 0:00:08.3]} 29. Nd1 {[%clk 0:00:14.9]}
29... Rxd3 {[%clk 0:00:07.8]} 30. Ne3 {[%clk 0:00:15.2]} 30... Rd4 {[%clk
0:00:05.6]} 31. Rd1 {[%clk 0:00:12.4]} 31... Rcd6 {[%clk 0:00:03.4]} 32. b3
{[%clk 0:00:07.6]} 32... Rxd1 {[%clk 0:00:03]} 33. Rxd1 {[%clk 0:00:08.5]} 33...
Rxd1+ {[%clk 0:00:02.9]} 34. Nxd1 {[%clk 0:00:09.4]} 34... Nxf4 {[%clk
0:00:03.5]} 35. Nb2 {[%clk 0:00:10.3]} 35... f6 {[%clk 0:00:03.4]} 36. h4 {[%clk
0:00:09.6]} 36... fxg5 {[%clk 0:00:03.5]} 37. hxg5 {[%clk 0:00:10.5]} 37... Ne6
{[%clk 0:00:03.5]} 38. Nd3 {[%clk 0:00:10.4]} 38... Kf8 {[%clk 0:00:04.2]} 39.
Kg2 {[%clk 0:00:10.1]} 39... Ke7 {[%clk 0:00:04.7]} 40. Kf3 {[%clk 0:00:09.7]}
40... Kd6 {[%clk 0:00:05.4]} 41. Kg3 {[%clk 0:00:08.8]} 41... Nxg5 {[%clk
0:00:05.8]} 42. Kf4 {[%clk 0:00:09.2]} 42... Ne6+ {[%clk 0:00:06.2]} 43. Ke3
{[%clk 0:00:09.9]} 43... g5 {[%clk 0:00:07.1]} 44. Kf3 {[%clk 0:00:10.3]} 44...
h5 {[%clk 0:00:07.4]} 45. Kg3 {[%clk 0:00:10.9]} 45... h4+ {[%clk 0:00:07.6]}
46. Kf3 {[%clk 0:00:11.4]} 46... g4+ {[%clk 0:00:07.9]} 0-1

[Event "Late-Titled-Tuesday-Blitz-March-19-2024"]
[Site "Chess.com"]
[Date "2024.03.19"]
[Round "5"]
[White "AlexeiShirov"]
[Black "mbachez"]
[Result "1-0"]
[WhiteElo "2841"]
[BlackElo "2647"]
[TimeControl "180+1"]
[EndTime "14:55:39 PDT"]
[Termination "AlexeiShirov won on time"]

1. e4 {[%clk 0:03:00.9]} 1... e5 {[%clk 0:03:00]} 2. Nf3 {[%clk 0:03:00.1]} 2...
Nc6 {[%clk 0:03:00]} 3. Bb5 {[%clk 0:02:59.4]} 3... a6 {[%clk 0:02:58.7]} 4. Ba4
{[%clk 0:02:58.7]} 4... Nf6 {[%clk 0:02:58.8]} 5. O-O {[%clk 0:02:58.1]} 5... d6
{[%clk 0:02:58]} 6. d4 {[%clk 0:02:15.5]} 6... Bd7 {[%clk 0:02:52.1]} 7. d5
{[%clk 0:02:10.6]} 7... Ne7 {[%clk 0:02:51.7]} 8. Bxd7+ {[%clk 0:02:07.2]} 8...
Qxd7 {[%clk 0:02:51.9]} 9. Re1 {[%clk 0:02:05.2]} 9... g6 {[%clk 0:02:51.6]} 10.
c4 {[%clk 0:02:04.3]} 10... Bg7 {[%clk 0:02:51.9]} 11. c5 {[%clk 0:02:01.2]}
11... O-O {[%clk 0:02:51.6]} 12. Nbd2 {[%clk 0:01:59.8]} 12... Nh5 {[%clk
0:02:51.6]} 13. Nc4 {[%clk 0:01:58.4]} 13... Rae8 {[%clk 0:02:38.6]} 14. cxd6
{[%clk 0:01:55.5]} 14... cxd6 {[%clk 0:02:38.7]} 15. a4 {[%clk 0:01:54.6]} 15...
Nf4 {[%clk 0:02:37.1]} 16. Bxf4 {[%clk 0:01:45.5]} 16... exf4 {[%clk 0:02:36.8]}
17. Rc1 {[%clk 0:01:42.7]} 17... b5 {[%clk 0:02:29.3]} 18. axb5 {[%clk
0:01:32.7]} 18... axb5 {[%clk 0:02:29.5]} 19. Na5 {[%clk 0:01:31.4]} 19... Bxb2
{[%clk 0:02:27.6]} 20. Rc2 {[%clk 0:01:30.9]} 20... Bg7 {[%clk 0:02:25.3]} 21.
Qd2 {[%clk 0:01:27.8]} 21... f5 {[%clk 0:02:17.8]} 22. Ng5 {[%clk 0:01:24]}
22... fxe4 {[%clk 0:02:10]} 23. Ne6 {[%clk 0:01:21.8]} 23... e3 {[%clk
0:02:03.4]} 24. fxe3 {[%clk 0:01:17.6]} 24... fxe3 {[%clk 0:02:01]} 25. Qd3
{[%clk 0:01:13.8]} 25... Qa7 {[%clk 0:01:54.4]} 26. Nxf8 {[%clk 0:01:07.8]}
26... Rxf8 {[%clk 0:01:52]} 27. Nc6 {[%clk 0:00:46.6]} 27... Nxc6 {[%clk
0:01:44.6]} 28. dxc6 {[%clk 0:00:45.4]} 28... Kh8 {[%clk 0:01:01.3]} 29. c7
{[%clk 0:00:32.6]} 29... Rc8 {[%clk 0:00:53.5]} 30. Qxb5 {[%clk 0:00:30.1]}
30... h5 {[%clk 0:00:33.5]} 31. Qd7 {[%clk 0:00:28.6]} 31... Qb7 {[%clk
0:00:17.7]} 32. Qxd6 {[%clk 0:00:21.2]} 32... Rf8 {[%clk 0:00:16.2]} 33. Qc6
{[%clk 0:00:18.9]} 33... Qc8 {[%clk 0:00:15.8]} 34. Rce2 {[%clk 0:00:17.6]}
34... Qf5 {[%clk 0:00:14.7]} 35. Qf3 {[%clk 0:00:16.1]} 35... Qc8 {[%clk
0:00:14.1]} 36. Qc6 {[%clk 0:00:15.3]} 36... Qf5 {[%clk 0:00:13.6]} 37. h3
{[%clk 0:00:15]} 37... Bd4 {[%clk 0:00:11.9]} 38. Qc4 {[%clk 0:00:13.3]} 38...
Bb6 {[%clk 0:00:09.8]} 39. Qb4 {[%clk 0:00:12.6]} 39... Bxc7 {[%clk 0:00:09.1]}
40. Rxe3 {[%clk 0:00:12]} 40... Qf2+ {[%clk 0:00:06.8]} 41. Kh1 {[%clk
0:00:11.7]} 41... Bg3 {[%clk 0:00:05.1]} 42. Qc3+ {[%clk 0:00:10.7]} 42... Kh7
{[%clk 0:00:03.7]} 43. Rxg3 {[%clk 0:00:11.2]} 1-0

[Event "Late-Titled-Tuesday-Blitz-March-19-2024"]
[Site "Chess.com"]
[Date "2024.03.19"]
[Round "5"]
[White "GM_shahin"]
[Black "PolandHussars"]
[Result "0-1"]
[WhiteElo "2870"]
[BlackElo "2567"]
[TimeControl "180+1"]
[EndTime "14:55:39 PDT"]
[Termination "PolandHussars won by resignation"]

1. e4 {[%clk 0:03:00.9]} 1... e5 {[%clk 0:02:59.8]} 2. Nf3 {[%clk 0:03:00]} 2...
Nc6 {[%clk 0:03:00.4]} 3. Bb5 {[%clk 0:03:00.7]} 3... g6 {[%clk 0:03:00.5]} 4.
d4 {[%clk 0:02:53.4]} 4... exd4 {[%clk 0:03:01.4]} 5. c3 {[%clk 0:02:54.3]} 5...
dxc3 {[%clk 0:03:00.3]} 6. Nxc3 {[%clk 0:02:52.6]} 6... Bg7 {[%clk 0:02:59.3]}
7. Bg5 {[%clk 0:02:50]} 7... Nce7 {[%clk 0:02:56.6]} 8. O-O {[%clk 0:02:47.1]}
8... h6 {[%clk 0:02:56.5]} 9. Bh4 {[%clk 0:02:46.7]} 9... a6 {[%clk 0:02:39.4]}
10. Ba4 {[%clk 0:02:27.4]} 10... g5 {[%clk 0:02:30.9]} 11. Bg3 {[%clk
0:02:26.9]} 11... Nf6 {[%clk 0:02:31.3]} 12. e5 {[%clk 0:02:23.4]} 12... Nh5
{[%clk 0:02:28.6]} 13. Bb3 {[%clk 0:02:20]} 13... Nxg3 {[%clk 0:02:26]} 14. fxg3
{[%clk 0:02:15]} 14... O-O {[%clk 0:02:24.4]} 15. Qe2 {[%clk 0:02:09.9]} 15...
d5 {[%clk 0:02:19.1]} 16. exd6 {[%clk 0:02:07.9]} 16... Qxd6 {[%clk 0:02:18.8]}
17. Ne4 {[%clk 0:02:07]} 17... Qb6+ {[%clk 0:02:17.9]} 18. Kh1 {[%clk 0:02:07]}
18... Be6 {[%clk 0:02:17.2]} 19. Rae1 {[%clk 0:01:46.1]} 19... Rfe8 {[%clk
0:02:09.3]} 20. Bxe6 {[%clk 0:01:40.5]} 20... Qxe6 {[%clk 0:02:08]} 21. Qc2
{[%clk 0:01:41.4]} 21... Qc6 {[%clk 0:02:05.2]} 22. Qb3 {[%clk 0:01:38.5]} 22...
Qd5 {[%clk 0:02:03]} 23. Qc2 {[%clk 0:01:31.9]} 23... Nc6 {[%clk 0:01:59.1]} 24.
a3 {[%clk 0:01:19.8]} 24... Rad8 {[%clk 0:01:57.2]} 25. Nc5 {[%clk 0:01:16.3]}
25... Rxe1 {[%clk 0:01:49.4]} 26. Rxe1 {[%clk 0:01:17.2]} 26... Nd4 {[%clk
0:01:46.5]} 27. Nxd4 {[%clk 0:01:15.9]} 27... Bxd4 {[%clk 0:01:46.6]} 28. Ne4
{[%clk 0:01:10.2]} 28... c5 {[%clk 0:01:40]} 29. Rd1 {[%clk 0:01:08.9]} 29...
Qc6 {[%clk 0:01:28.1]} 30. g4 {[%clk 0:01:03.5]} 30... Re8 {[%clk 0:01:13]} 31.
Ng3 {[%clk 0:01:00.8]} 31... Qe6 {[%clk 0:01:13.1]} 32. h3 {[%clk 0:00:56.6]}
32... b6 {[%clk 0:01:02]} 33. Nf5 {[%clk 0:00:56.9]} 33... Bg7 {[%clk 0:01:00]}
34. Qa4 {[%clk 0:00:55.9]} 34... b5 {[%clk 0:00:57.3]} 35. Qc2 {[%clk
0:00:54.1]} 35... Bf8 {[%clk 0:00:52.1]} 36. Ng3 {[%clk 0:00:40.6]} 36... Qe5
{[%clk 0:00:47.1]} 37. Nf5 {[%clk 0:00:39.7]} 37... c4 {[%clk 0:00:44.8]} 38.
Qf2 {[%clk 0:00:38]} 38... Kh7 {[%clk 0:00:40.2]} 39. Ng3 {[%clk 0:00:35.5]}
39... Re7 {[%clk 0:00:33.1]} 40. Nh5 {[%clk 0:00:33.6]} 40... Bg7 {[%clk
0:00:33.5]} 41. Rf1 {[%clk 0:00:32.6]} 41... Rd7 {[%clk 0:00:29.9]} 42. Qc2+
{[%clk 0:00:32.2]} 42... Kg8 {[%clk 0:00:29.9]} 43. a4 {[%clk 0:00:30.9]} 43...
Rd3 {[%clk 0:00:26.3]} 44. axb5 {[%clk 0:00:30.7]} 44... axb5 {[%clk 0:00:27.2]}
45. Qf2 {[%clk 0:00:29.7]} 45... Qd5 {[%clk 0:00:27]} 46. Nxg7 {[%clk
0:00:22.1]} 46... Kxg7 {[%clk 0:00:26.5]} 47. Qf6+ {[%clk 0:00:22.8]} 47... Kh7
{[%clk 0:00:27]} 48. Qxf7+ {[%clk 0:00:18.4]} 48... Qxf7 {[%clk 0:00:26.8]} 49.
Rxf7+ {[%clk 0:00:19.3]} 49... Kg6 {[%clk 0:00:27.4]} 50. Rf2 {[%clk 0:00:20.1]}
50... b4 {[%clk 0:00:26.6]} 51. Rc2 {[%clk 0:00:19.9]} 51... c3 {[%clk
0:00:26.3]} 52. bxc3 {[%clk 0:00:20.2]} 52... Rxc3 {[%clk 0:00:27.2]} 53. Ra2
{[%clk 0:00:19.7]} 53... b3 {[%clk 0:00:26.9]} 54. Ra6+ {[%clk 0:00:20.2]} 54...
Kg7 {[%clk 0:00:27.4]} 55. Rb6 {[%clk 0:00:21.1]} 55... Rd3 {[%clk 0:00:27.3]}
56. Kg1 {[%clk 0:00:21.6]} 56... Rc3 {[%clk 0:00:27.8]} 57. Kf2 {[%clk
0:00:22.1]} 57... Rd3 {[%clk 0:00:28.4]} 58. Ke2 {[%clk 0:00:22.6]} 58... Rc3
{[%clk 0:00:29]} 59. Kd2 {[%clk 0:00:23.2]} 59... Rc2+ {[%clk 0:00:29.5]} 60.
Ke1 {[%clk 0:00:22.4]} 60... b2 {[%clk 0:00:27.9]} 0-1